[Event "Lliga Catalana DH 2023"]
[Site "Catalonia"]
[Date "2023.03.11"]
[Round "8.9"]
[White "Navarro Perez, Manuel"]
[Black "Garcia Marin, Guillem"]
[Result "1/2-1/2"]
[ECO "C41"]
[WhiteElo "2004"]
[BlackElo "2038"]
[Annotator "TA"]
[PlyCount "65"]
[EventDate "2023.01.24"]
[EventType "team-tourn"]
[EventCountry "ESP"]
[SourceTitle "playchess.com"]
[Source "ChessBase"]
[SourceQuality "1"]
[TimeControl "40/5400+30:1800+30"]

{[%evp 9,65,27,26,0,0,-11,-12,-16,0,-20,-16,-8,5,0,0,0,-1,-18,-33,-33,-25,-47,-3,-63,-51,-75,-43,-52,-19,-67,-27,-35,5,0,18,-65,-60,-62,-59,-59,-59,-59,-59,-54,-54,-70,-70,-70,-70,-70,0,-25,0,-80,0,-75,0,-77]} 1. e4 e5 2. Nf3 Nf6 3. Nc3 d6 4. h3 c6 5. d4 Nbd7 6. dxe5 {C41: Philidor Defence.} dxe5 7. a3 Be7 8. Bc4 O-O (8... b5 $5 {[%cal Rb5c4]} 9. Bd3 Qc7 $11) 9. O-O b5 10. Bd3 {[#]} h6 $146 ({Predecessor:} 10... Qc7 11. Be3 Nc5 12. Qe2 a5 13. Bxc5 Bxc5 14. Nh2 Be6 15. Nd1 g6 16. g4 h5 {0-1 Kristovic,M (2267)-Ostovic,M (2304) CRO-chT2 Center 2012 (1.22)}) 11. Ne2 Qc7 12. Ng3 Nc5 13. Be3 Rd8 14. Bxc5 Bxc5 15. Qe2 a6 16. Nh4 (16. b4 $11 Bd4 17. Nxd4 Rxd4 18. Qe3) 16... Bf8 $15 17. Qf3 c5 18. c4 Rb8 19. b3 (19. Qe2 $11 {feels stronger.}) 19... Rb6 20. Rfd1 Bb7 21. Qe2 b4 22. a4 (22. Nhf5 $11) 22... g6 23. Bc2 Rbd6 24. Nf3 Rxd1+ 25. Rxd1 Rxd1+ 26. Qxd1 h5 27. Qd2 Bg7 28. Qg5 Nh7 29. Qd2 Nf6 30. Qg5 Nh7 (30... Ne8 $11) 31. Qd2 $1 $17 Nf6 ({Black should play} 31... Nf8 $17) 32. Qc1 (32. Qg5 $11 {keeps the balance.}) 32... Bf8 (32... Qd6 $17) 33. Qd1 {Weighted Error Value: White=0.20 (precise) /Black=0.19 (very precise)} (33. Qd2 $11 {remains equal.}) 1/2-1/2

[Event "Lliga Catalana DH 2023"]
[Site "Catalonia"]
[Date "2023.03.11"]
[Round "8.10"]
[White "Oset Teixidor, Guerau"]
[Black "Catarineu Rabell, Manel"]
[Result "1/2-1/2"]
[ECO "A47"]
[WhiteElo "2001"]
[BlackElo "1923"]
[Annotator "TA"]
[PlyCount "50"]
[EventDate "2023.01.24"]
[EventType "team-tourn"]
[EventCountry "ESP"]
[SourceTitle "playchess.com"]
[Source "ChessBase"]
[SourceQuality "1"]
[TimeControl "40/5400+30:1800+30"]

{[%evp 15,50,0,0,0,5,-9,-10,-30,-8,-44,-37,-50,-51,-46,-28,-9,-16,-10,-28,-52,-44,-40,-8,-8,0,-59,-9,-57,-22,-19,-18,-79,0,-30,43,44,61]} 1. b3 d5 2. Bb2 e6 3. Nf3 Nf6 4. e3 Be7 5. d4 O-O 6. Bd3 b6 7. O-O $1 {The main line 7.0-0 scores better than 7.Nbd2.} Bb7 8. Ne5 Nbd7 9. f4 {A47: 1 d4 Nf6 2 Nf3 b6: Torre, London and Colle Systems.} Ne4 10. Bxe4 dxe4 11. c4 {[#] The position is equal.} f6 $146 {[%cal Bf7f6,Bf6f5][%mdl 32]} ({Predecessor:} 11... c5 12. Nd2 Nxe5 13. fxe5 Bg5 14. Qe2 f6 15. exf6 Bxf6 16. Qg4 cxd4 17. Qxe6+ Kh8 18. Bxd4 Bxd4 19. Rxf8+ Qxf8 20. exd4 {1-0 Springis,J (1519)-Gherghinoiu,L (1968) EU-ch U12 28th 2018 (2)}) 12. Ng4 f5 13. Ne5 Nxe5 14. fxe5 Qd7 15. Nc3 Rad8 16. Ne2 c5 17. dxc5 Bxc5 18. Bd4 Be7 19. Qe1 Qe8 20. Qg3 (20. Nf4 $11) 20... Qg6 ({Black should play} 20... Qh5 $15 21. Qf2 g5) 21. Nf4 (21. Qxg6 $11 {deserves consideration.} hxg6 22. a4) 21... Qxg3 22. hxg3 Kf7 23. Rad1 (23. a4 $11 {remains equal.}) 23... Bg5 (23... g5 $17 24. Nh5 Kg6) 24. Kf2 Bxf4 (24... Rh8 $11) 25. gxf4 $14 Ke8 {Weighted Error Value: White=0.24 (precise) /Black=0.26 (precise)} 1/2-1/2